bitfinex-derivatives/quotes_BNBF0:USTF0_20260114
["timestamp","ask_amount","ask_price","bid_price","bid_amount"]
[1768416792630,1.685,943.93,942.93,1.05460744]
[1768416794231,1.685,943.93,942.92,1.05460744]
[1768416797333,1.685,943.93,942.9,1.05460744]
[1768416797832,1.685,943.93,942.89,1.05460744]
[1768416798033,1.685,943.93,942.81,1.05460744]
[1768416798337,1.685,943.93,942.8,1.05460744]
[1768416798939,1.685,943.93,942.79,1.05460744]
[1768416799238,1.685,943.93,942.75,1.05460744]
[1768416799438,1.685,943.93,942.71,1.05460744]
[1768416800142,1.685,943.93,942.69,1.05460744]
[1768416800341,1.685,943.93,942.7,1.05460744]
[1768416800539,1.685,943.93,942.69,1.05460744]
[1768416801042,1.685,943.93,942.52,1.58191116]
[1768416801043,1.685,943.93,942.64,1.05460744]
[1768416801338,1.685,943.93,942.65,1.05460744]
[1768416802343,1.685,943.93,942.66,1.05460744]
[1768416804344,1.685,943.93,942.67,1.05460744]
[1768416807345,1.685,943.93,942.68,1.05460744]
[1768416808847,1.685,943.93,942.67,1.05460744]
[1768416809150,1.685,943.93,942.58,1.05460744]
[1768416809746,1.685,943.93,942.6,1.05460744]
[1768416810852,1.685,943.93,942.59,1.05460744]
[1768416811550,1.685,943.93,942.61,1.05460744]
[1768416811751,1.685,943.93,942.62,1.05460744]
[1768416817258,1.685,943.93,942.61,1.05460744]
[1768416820461,1.685,943.93,942.6,1.05460744]
[1768416822858,1.685,943.93,942.64,1.05460744]
[1768416824861,1.685,943.93,942.66,1.05460744]
[1768416825265,1.685,943.93,942.73,1.05460744]
[1768416826461,1.685,943.93,942.74,1.05460744]
[1768416832869,0.18440506,943.97,942.75,1.05460744]
[1768416833066,0.18440506,943.97,942.76,1.05460744]
[1768416834067,0.18440506,943.97,942.83,1.05460744]
[1768416836772,1.616,943.96,942.83,1.05460744]
[1768416837370,1.616,943.96,942.84,1.05460744]
[1768416839167,1.616,943.96,942.8,1.05460744]
[1768416839772,1.616,943.96,942.74,1.05460744]
[1768416840273,1.616,943.96,942.75,1.05460744]
[1768416840469,1.616,943.96,942.73,1.05460744]
[1768416841474,1.616,943.96,942.74,1.05460744]
[1768416842371,1.616,943.96,942.75,1.05460744]
[1768416845276,1.616,943.96,942.76,1.05460744]
[1768416845973,1.616,943.96,942.77,1.05460744]
[1768416854382,1.616,943.96,942.78,1.05460744]
[1768416857376,1.616,943.96,942.61,1.58191116]
[1768416857377,1.616,943.96,942.79,1.05460744]
[1768416859679,1.616,943.96,942.8,1.05460744]
[1768416861481,1.616,943.96,942.81,1.05460744]
[1768416864379,1.616,943.96,942.82,1.05460744]
[1768416867386,1.616,943.96,942.83,1.05460744]
[1768416876689,1.616,943.96,942.84,1.05460744]
[1768416879791,0.18440506,943.97,942.84,1.05460744]
[1768416881297,0.18440506,943.97,942.85,1.05460744]
[1768416882295,1.463,943.96,942.85,1.05460744]
[1768416882594,1.463,943.96,942.86,1.05460744]
[1768416883392,1.463,943.96,942.87,1.05460744]
[1768416883996,1.463,943.96,942.86,1.05460744]
[1768416884195,1.463,943.96,942.87,1.05460744]
[1768416885196,1.463,943.96,942.97,1.05460744]
[1768416885694,1.463,943.96,943.06,1.05460744]
[1768416885898,1.463,943.96,943.01,1.05460744]
[1768416886293,1.463,943.96,942.84,1.58191116]
[1768416886294,1.463,943.96,942.99,1.05460744]
[1768416886495,1.463,943.96,943.05,1.05460744]
[1768416887199,1.463,943.96,943.03,1.05460744]
[1768416888099,1.463,943.96,943.01,1.05460744]
[1768416889202,1.463,943.96,943.0,1.05460744]
[1768416889702,1.463,943.96,943.02,1.05460744]
[1768416891303,1.463,943.96,943.01,1.05460744]
[1768416892208,1.463,943.96,943.0,1.05460744]
[1768416892803,1.463,943.96,943.05,1.05460744]
[1768416893205,1.463,943.96,943.09,1.05460744]
[1768416894107,1.463,943.96,943.22,1.05460744]
[1768416894306,1.463,943.96,943.19,1.05460744]
[1768416895210,1.463,943.96,943.17,1.05460744]
[1768416896213,1.463,943.96,943.15,1.05460744]
[1768416896912,1.463,943.96,943.17,1.05460744]
[1768416897111,1.463,943.96,943.18,1.05460744]
[1768416897412,1.463,943.96,943.16,1.05460744]
[1768416898708,1.463,943.96,943.17,1.05460744]
[1768416899108,1.463,943.96,943.15,1.05460744]
[1768416902116,1.463,943.96,943.16,1.05460744]
[1768416902316,1.463,943.96,943.23,1.05460744]
[1768416903013,1.463,943.96,943.31,1.05460744]
[1768416903214,1.463,943.96,943.29,1.05460744]
[1768416904216,1.463,943.96,943.12,1.58191116]
[1768416904217,1.463,943.96,943.27,1.05460744]
[1768416905218,1.463,943.96,943.25,1.05460744]
[1768416905518,1.463,943.96,943.26,1.05460744]
[1768416906317,1.463,943.96,943.32,1.05460744]
[1768416906616,1.463,943.96,943.31,1.05460744]
[1768416907222,1.463,943.96,943.29,1.05460744]
[1768416908323,1.463,943.96,943.27,1.05460744]
[1768416909224,1.463,943.96,943.25,1.05460744]
[1768416910222,1.463,943.96,943.24,1.05460744]
[1768416910919,1.463,943.96,943.17,1.05460744]
[1768416911322,1.463,943.96,943.16,1.05460744]
[1768416911624,1.463,943.96,943.07,1.05460744]
[1768416912723,1.463,943.96,943.05,1.05460744]
[1768416914423,1.463,943.96,943.06,1.05460744]
[1768416914726,1.463,943.96,943.05,1.05460744]
[1768416915425,1.463,943.96,943.06,1.05460744]
[1768416916026,1.463,943.96,943.1,1.05460744]
[1768416917325,1.463,943.96,943.11,1.05460744]
[1768416917629,1.463,943.96,943.17,1.05460744]
[1768416919229,1.463,943.96,943.18,1.05460744]
[1768416920529,1.463,943.96,943.16,1.05460744]
[1768416920729,1.463,943.96,943.14,1.05460744]
[1768416920929,1.463,943.96,943.0,1.05460744]
[1768416921225,1.463,943.96,942.99,1.05460744]
[1768416922328,1.463,943.96,943.0,1.05460744]
[1768416922934,1.463,943.96,942.97,1.05460744]
[1768416923230,1.463,943.96,942.91,1.05460744]
[1768416923432,0.19764336,944.68,942.91,1.05460744]
[1768416923932,0.18431422,944.68,942.91,1.05460744]
[1768416924130,0.18431422,944.68,942.92,1.05460744]
[1768416924335,0.18431422,944.68,942.93,1.05460744]
[1768416924634,0.18431422,944.68,942.85,1.05460744]
[1768416925231,0.18431422,944.68,942.84,1.05460744]
[1768416925632,0.18431422,944.68,942.74,1.05460744]
[1768416926233,0.18431422,944.68,942.75,1.05460744]
[1768416926633,1.896,944.67,942.77,1.05460744]
[1768416927336,1.896,944.67,942.78,1.05460744]
[1768416927535,1.896,944.67,942.84,1.05460744]
[1768416928134,1.896,944.67,942.86,1.05460744]
[1768416929236,1.896,944.67,942.88,1.05460744]
[1768416930238,1.896,944.67,942.89,1.05460744]
[1768416932238,1.896,944.67,942.9,1.05460744]
[1768416933236,1.896,944.67,942.96,1.05460744]
[1768416934139,1.896,944.67,942.95,1.05460744]
[1768416937249,1.896,944.67,942.96,1.05460744]
[1768416938650,1.896,944.67,942.9,1.05460744]
[1768416939251,1.896,944.67,942.93,1.05460744]
[1768416941253,1.896,944.67,942.92,1.05460744]
[1768416943154,1.896,944.67,942.95,1.05460744]
[1768416945554,0.18431422,944.68,943.01,1.05460744]
[1768416946252,0.18431422,944.68,943.15,1.05460744]
[1768416948253,0.18431422,944.68,943.16,1.05460744]
[1768416948955,0.18431422,944.68,943.15,1.05460744]
[1768416949154,1.824,944.67,943.16,1.05460744]
[1768416950358,1.824,944.67,943.15,1.05460744]
[1768416951261,1.824,944.67,943.16,1.05460744]
[1768416952256,1.824,944.67,943.17,1.05460744]
[1768416953256,1.824,944.67,943.18,1.05460744]
[1768416954261,1.824,944.67,943.19,1.05460744]
[1768416955262,1.824,944.67,943.2,1.05460744]
[1768416957260,1.824,944.67,943.21,1.05460744]
[1768416959265,1.824,944.67,943.19,1.05460744]
[1768416959862,1.824,944.67,943.13,1.05460744]
[1768416960061,1.824,944.67,943.11,1.05460744]
[1768416960366,1.824,944.67,942.98,1.05460744]
[1768416961666,1.824,944.67,943.0,1.05460744]
[1768416962163,1.824,944.67,943.01,1.05460744]
[1768416963363,1.824,944.67,941.29,5.27303722]
[1768416963364,1.824,944.67,943.02,1.05460744]
[1768416964468,1.824,944.67,943.04,1.05460744]
[1768416965264,1.824,944.67,943.05,1.05460744]
[1768416966168,1.824,944.67,943.06,1.05460744]
[1768416970571,1.824,944.67,943.07,1.05460744]
[1768416972369,1.824,944.67,943.08,1.05460744]
[1768416974174,1.824,944.67,943.09,1.05460744]
[1768416974375,1.824,944.67,943.08,1.05460744]
[1768416975076,1.824,944.67,943.09,1.05460744]
[1768416977574,1.824,944.67,943.08,1.05460744]
[1768416978878,1.824,944.67,943.11,1.05460744]
[1768416984984,1.824,944.67,943.1,1.05460744]
[1768416988283,0.18431422,944.68,943.1,1.05460744]
[1768416988486,0.18431422,944.68,943.09,1.05460744]
[1768416991686,0.18431422,944.68,943.08,1.05460744]
[1768416992187,1.527,944.67,943.08,1.05460744]
[1768416993288,1.527,944.67,942.23,2.63651861]
[1768416993289,1.527,944.67,943.09,1.05460744]
[1768416996292,1.527,944.67,943.1,1.05460744]
[1768416998394,1.527,944.67,943.11,1.05460744]
[1768417000194,1.527,944.67,943.09,1.05460744]
[1768417000395,1.527,944.67,943.1,1.05460744]
[1768417002199,1.527,944.67,943.11,1.05460744]
[1768417002891,1.527,944.67,943.1,1.05460744]
[1768417003396,1.527,944.67,943.11,1.05460744]
[1768417004195,1.527,944.67,943.13,1.05460744]
[1768417004991,1.527,944.67,943.12,1.05460744]
[1768417005192,1.527,944.67,943.11,1.05460744]
[1768417006694,1.527,944.67,943.17,1.05460744]
[1768417007495,1.527,944.67,943.18,1.05460744]
[1768417008897,1.527,944.67,943.19,1.05460744]
[1768417009398,1.527,944.67,943.21,1.05460744]
[1768417009600,1.527,944.67,943.23,1.05460744]
[1768417009800,1.527,944.67,943.24,1.05460744]
[1768417011798,1.527,944.67,943.32,1.05460744]
[1768417012097,1.527,944.67,943.31,1.05460744]
[1768417013097,1.527,944.67,943.3,1.05460744]
[1768417015102,1.527,944.67,943.29,1.05460744]
[1768417016209,1.527,944.67,943.23,1.05460744]
[1768417020612,1.527,944.67,943.24,1.05460744]
[1768417022315,1.527,944.67,943.27,1.05460744]
[1768417022515,1.527,944.67,943.3,1.05460744]
[1768417023411,1.527,944.67,943.28,1.05460744]
[1768417024212,1.527,944.67,943.19,1.05460744]
[1768417024717,1.527,944.67,943.09,1.05460744]
[1768417028613,1.527,944.67,943.01,1.05460744]
[1768417029118,1.527,944.67,943.0,1.05460744]
[1768417029718,1.527,944.67,942.97,1.05460744]
[1768417030113,1.527,944.67,942.99,1.05460744]
[1768417030314,0.18431422,944.68,942.99,1.05460744]
[1768417030517,0.18431422,944.68,943.01,1.05460744]
[1768417031520,0.18431422,944.68,943.07,1.05460744]
[1768417033522,0.18431422,944.68,943.1,1.05460744]
[1768417034321,1.346,944.67,943.1,1.05460744]
[1768417038218,1.346,944.67,943.16,1.05460744]
[1768417039921,1.346,944.67,943.25,1.05460744]
[1768417042123,1.346,944.67,943.23,1.05460744]
[1768417042723,1.346,944.67,943.21,1.05460744]
[1768417051129,1.346,944.67,943.22,1.05460744]
[1768417051733,1.346,944.67,943.2,1.05460744]
[1768417051933,1.346,944.67,943.03,1.58191116]
[1768417051934,1.346,944.67,943.16,1.05460744]
[1768417052134,1.346,944.67,943.1,1.05460744]
[1768417060240,1.346,944.67,943.11,1.05460744]
[1768417060941,1.346,944.67,943.12,1.05460744]
[1768417064338,1.346,944.67,943.13,1.05460744]
[1768417064738,1.346,944.67,943.12,1.05460744]
[1768417064937,1.346,944.67,943.16,1.05460744]
[1768417066341,1.346,944.67,943.18,1.05460744]
[1768417068439,1.346,944.67,943.19,1.05460744]
[1768417069338,1.346,944.67,943.27,1.05460744]
[1768417071339,1.346,944.67,943.26,1.05460744]
[1768417071642,1.346,944.67,943.21,1.05460744]
[1768417074640,1.346,944.67,943.31,1.05460744]
[1768417075344,1.346,944.67,943.32,1.05460744]
[1768417081354,1.346,944.67,943.31,1.05460744]
[1768417081652,1.346,944.67,943.21,1.05460744]
[1768417082053,1.346,944.67,942.36,2.63651861]
[1768417082451,0.18431422,944.68,942.36,2.63651861]
[1768417082650,0.18431422,944.68,942.37,2.63651861]
[1768417083856,0.18431422,944.68,943.05,1.58468387]
[1768417084150,0.18431422,944.68,943.22,1.05645561]
[1768417085949,1.541,944.67,943.22,1.05645561]
[1768417095965,1.541,944.67,943.2,1.05645561]
[1768417096366,1.541,944.67,943.16,1.05645561]
[1768417097265,1.541,944.67,943.15,1.05645561]
[1768417097462,1.541,944.67,943.16,1.05645561]
[1768417097662,1.541,944.67,943.15,1.05645561]
[1768417098468,1.541,944.67,943.06,1.05645561]
[1768417098664,1.541,944.67,942.97,1.05645561]
[1768417098869,1.541,944.67,942.94,1.05645561]
[1768417099069,1.541,944.67,942.91,1.05645561]
[1768417099266,1.541,944.67,942.86,1.05645561]
[1768417100369,1.541,944.67,942.84,1.05645561]
[1768417100571,1.541,944.67,942.87,1.05645561]
[1768417101269,1.541,944.67,942.88,1.05645561]
[1768417101568,1.541,944.67,942.87,1.05645561]
[1768417103371,0.18435084,944.23,942.86,1.05645561]
[1768417104371,0.18435084,944.23,942.85,1.05645561]
[1768417105369,0.18435084,944.23,942.84,1.05645561]
[1768417107273,0.18435084,944.23,942.83,1.05645561]
[1768417107973,0.18435084,944.23,943.03,1.05645561]
[1768417109974,0.18435084,944.23,943.04,1.05645561]
[1768417117180,1.541,944.67,943.1,1.05645561]
[1768417117581,0.1843235,944.33,943.1,1.05645561]
[1768417122284,0.1843235,944.33,943.11,1.05645561]
[1768417124486,0.1843235,944.33,943.12,1.05645561]
[1768417127590,1.824,944.32,943.12,1.05645561]
[1768417129589,1.824,944.32,943.13,1.05645561]
[1768417133886,1.824,944.32,943.23,1.05645561]
[1768417134486,1.824,944.32,943.25,1.05645561]
[1768417134687,1.824,944.32,943.27,1.05645561]
[1768417135384,1.824,944.32,943.26,1.05645561]
[1768417136186,1.824,944.32,943.34,1.05645561]
[1768417136486,1.824,944.32,943.33,1.05645561]
[1768417137589,1.824,944.32,943.31,1.05645561]
[1768417137791,1.824,944.32,943.3,1.05645561]
[1768417138386,1.824,944.32,943.29,1.05645561]
[1768417139290,1.824,944.32,943.23,1.05645561]
[1768417141689,1.824,944.32,943.22,1.05645561]
[1768417142091,1.824,944.32,943.19,1.05645561]
[1768417142294,1.824,944.32,943.16,1.05645561]
[1768417142494,1.824,944.32,943.15,1.05645561]
[1768417144391,1.824,944.32,943.16,1.05645561]
[1768417144690,1.824,944.32,943.1,1.05645561]
[1768417145291,1.824,944.32,943.08,1.05645561]
[1768417146495,1.824,944.32,943.09,1.05645561]
[1768417147494,1.824,944.32,943.11,1.05645561]
[1768417147895,1.824,944.32,943.14,1.05645561]
[1768417148392,1.824,944.32,943.15,1.05645561]
[1768417149392,1.824,944.32,943.16,1.05645561]
[1768417150594,1.824,944.32,943.17,1.05645561]
[1768417151397,1.824,944.32,943.18,1.05645561]
[1768417152299,1.824,944.32,943.2,1.05645561]
[1768417152596,0.18431813,944.46,943.2,1.05645561]
[1768417153603,0.18431813,944.46,943.18,1.05645561]
[1768417153900,0.18431813,944.46,943.05,1.05645561]
[1768417154296,0.18431813,944.46,943.04,1.05645561]
[1768417154999,1.786,944.45,943.04,1.05645561]
[1768417157503,1.786,944.45,943.05,1.05645561]
[1768417157803,1.786,944.45,942.88,1.58468387]
[1768417158307,1.786,944.45,942.87,1.58468387]
[1768417159005,1.786,944.45,942.94,1.58468387]
[1768417160503,1.786,944.45,942.95,1.58468387]
[1768417161308,1.786,944.45,942.94,1.58468387]
[1768417161605,1.786,944.45,942.95,1.58468387]
[1768417166313,1.786,944.45,942.94,1.58468387]
[1768417169613,1.786,944.45,942.87,1.58468387]
[1768417169814,1.786,944.45,942.85,1.58468387]
[1768417171418,1.786,944.45,942.84,1.58468387]
[1768417175515,1.786,944.45,942.83,1.58468387]
[1768417176618,1.786,944.45,942.77,1.58468387]
[1768417176819,1.786,944.45,942.76,1.58468387]
[1768417177019,1.786,944.45,942.74,1.58468387]
[1768417177223,1.786,944.45,942.62,1.58468387]
[1768417177519,1.786,944.45,942.6,1.58468387]
[1768417178319,1.786,944.45,942.59,1.58468387]
[1768417179320,1.786,944.45,942.58,1.58468387]
[1768417180323,1.786,944.45,942.57,1.58468387]
[1768417182320,1.786,944.45,942.58,1.58468387]
[1768417182521,1.786,944.45,942.57,1.58468387]
[1768417183125,1.786,944.45,942.56,1.58468387]
[1768417183322,1.786,944.45,942.52,1.58468387]
[1768417183524,1.786,944.45,942.45,1.58468387]
[1768417184322,1.786,944.45,942.44,1.58468387]
[1768417185426,1.786,944.45,942.43,1.58468387]
[1768417186530,1.786,944.45,942.42,1.58468387]
[1768417187329,1.786,944.45,942.41,1.58468387]
[1768417189026,1.786,944.45,942.42,1.58468387]
[1768417190430,1.786,944.45,942.41,1.58468387]
[1768417192330,1.786,944.45,942.4,1.58468387]
[1768417197138,0.18431813,944.46,942.4,1.58468387]
[1768417197838,0.18431813,944.46,942.46,1.58468387]
[1768417198439,0.18431813,944.46,942.47,1.58468387]
[1768417200338,0.18431813,944.46,942.46,1.58468387]
[1768417201139,0.18431813,944.46,942.41,1.58468387]
[1768417201343,1.303,944.45,942.41,1.58468387]
[1768417202044,1.303,944.45,942.39,1.58468387]
[1768417202444,1.303,944.45,942.4,1.58468387]
[1768417202646,1.303,944.45,942.41,1.58468387]
[1768417203141,1.303,944.45,942.44,1.58468387]
[1768417207444,1.303,944.45,942.45,1.58468387]
[1768417208246,1.303,944.45,942.43,1.58468387]
[1768417209350,1.303,944.45,942.44,1.58468387]
[1768417210449,1.303,944.45,942.39,1.58468387]
[1768417210654,1.303,944.45,942.27,1.58468387]
[1768417211850,1.303,944.45,942.12,1.58468387]
[1768417212453,1.303,944.45,942.11,1.58468387]
[1768417214254,1.303,944.45,942.09,1.58468387]
[1768417214556,1.303,944.45,942.1,1.58468387]
[1768417215154,1.303,944.45,942.07,1.58468387]
[1768417216354,1.303,944.45,942.06,1.58468387]
[1768417217451,1.303,944.45,942.05,1.58468387]
[1768417218164,1.303,944.45,942.04,1.58468387]
[1768417218457,1.303,944.45,941.81,0.18436793]
[1768417218458,1.303,944.45,941.92,1.58468387]
[1768417219151,1.303,944.45,941.85,1.58468387]
[1768417219353,2.63036828,944.42,941.82,1.58468387]
[1768417219556,2.63036828,944.42,941.8,1.58468387]
[1768417219754,1.303,944.45,941.8,1.58468387]
[1768417219755,2.63036828,944.41,941.8,1.58468387]
[1768417220252,2.63036828,944.43,941.78,1.58468387]
[1768417220957,2.63036828,944.42,941.78,1.58468387]
[1768417221353,2.63036828,944.43,941.77,1.58468387]
[1768417222357,2.63036828,944.44,941.76,1.58468387]
[1768417223457,3.93336828,944.45,941.74,1.58468387]
[1768417224156,3.93336828,944.45,941.75,1.58468387]
[1768417224354,3.93336828,944.45,941.73,1.58468387]
[1768417224558,1.303,944.45,941.73,1.58468387]
[1768417225254,1.303,944.45,941.76,1.58468387]
[1768417225456,1.303,944.45,941.75,1.58468387]
[1768417227356,1.303,944.45,941.74,1.58468387]
[1768417227555,1.303,944.45,941.71,1.58468387]
[1768417229459,1.303,944.45,941.7,1.58468387]
[1768417230559,1.303,944.45,941.69,1.58468387]
[1768417232562,1.303,944.45,941.78,1.58468387]
[1768417233165,1.303,944.45,941.8,1.58468387]
[1768417234662,1.303,944.45,941.81,1.58468387]
[1768417235161,1.303,944.45,941.8,1.58468387]
[1768417235357,1.303,944.45,941.81,1.58468387]
[1768417237276,1.303,944.45,941.79,1.58468387]
[1768417239364,1.303,944.45,941.8,1.58468387]
[1768417240363,1.303,944.45,941.78,1.58468387]
[1768417240565,1.303,944.45,941.69,1.58468387]
[1768417241266,1.303,944.45,941.54,1.58468387]
[1768417241461,2.63036828,944.32,941.54,1.58468387]
[1768417242869,2.63036828,944.32,941.53,1.58468387]
[1768417243370,2.63036828,944.32,941.54,1.58468387]
[1768417244570,2.63036828,944.31,941.54,1.58468387]
[1768417246376,2.63036828,944.31,941.56,1.58468387]
[1768417246573,2.63036828,944.31,941.38,0.18452973]
[1768417246574,2.63036828,944.42,941.65,1.58468387]
[1768417247479,2.63036828,944.42,941.66,1.58468387]
[1768417247773,2.63036828,944.42,941.67,1.58468387]
[1768417247977,2.63036828,944.42,941.84,1.04989174]
[1768417248271,2.63036828,944.43,941.84,1.04989174]
[1768417248474,2.63036828,944.43,941.86,1.04989174]
[1768417248679,2.63036828,944.43,941.85,1.04989174]
[1768417248878,2.63036828,944.43,941.87,1.04989174]
[1768417249475,2.63036828,944.43,941.93,1.04989174]
[1768417249776,1.303,944.45,941.93,1.04989174]
[1768417250180,1.303,944.45,941.94,1.04989174]
[1768417250475,1.303,944.45,941.95,1.04989174]
[1768417251377,2.63036828,944.44,941.97,1.04989174]
[1768417252475,1.303,944.45,941.99,1.04989174]
[1768417252476,2.63036828,944.42,941.99,1.04989174]
[1768417253075,2.63036828,944.42,942.0,1.04989174]
[1768417253278,2.63036828,944.42,942.02,1.04989174]
[1768417253476,2.63036828,944.42,942.03,1.04989174]
[1768417253775,2.63036828,944.42,942.08,1.04989174]
[1768417253978,1.303,944.45,942.09,1.04989174]
[1768417254176,1.303,944.45,942.13,1.04989174]
[1768417254477,1.303,944.45,942.15,1.04989174]
[1768417255481,1.303,944.45,942.18,1.04989174]
[1768417256380,1.303,944.45,942.2,1.04989174]
[1768417258181,1.303,944.45,942.19,1.04989174]
[1768417258380,1.303,944.45,942.02,1.58468387]
[1768417258381,1.303,944.45,942.02,1.04989174]
[1768417258583,2.63036828,944.26,942.02,1.04989174]
[1768417259579,2.63036828,944.26,942.03,1.04989174]
[1768417259881,2.63036828,944.26,942.04,1.04989174]
[1768417260084,2.63036828,944.26,942.05,1.04989174]
[1768417260384,2.63036828,944.28,942.05,1.04989174]
[1768417260587,6.75557198,944.26,942.05,1.04989174]
[1768417261286,6.75557198,944.26,942.06,1.04989174]
[1768417262088,6.75557198,944.26,942.04,1.04989174]
[1768417262289,2.63036828,944.24,942.05,1.04989174]
[1768417263389,1.794,944.23,942.05,1.04989174]
[1768417266892,1.794,944.23,942.18,1.04989174]
[1768417267101,1.794,944.23,942.19,1.04989174]
[1768417267292,1.794,944.23,942.24,1.04989174]
[1768417267592,1.794,944.23,942.34,1.04989174]
[1768417268388,1.794,944.23,942.41,1.04989174]
[1768417269487,1.794,944.23,942.4,1.04989174]
[1768417270291,1.794,944.23,942.39,1.04989174]
[1768417271394,1.794,944.23,942.38,1.04989174]
[1768417272493,1.794,944.23,942.37,1.04989174]
[1768417273325,1.794,944.23,942.36,1.04989174]
[1768417274391,1.794,944.23,942.35,1.04989174]
[1768417276398,1.794,944.23,942.34,1.04989174]
[1768417277401,6.75557198,944.26,942.34,1.04989174]
[1768417278298,6.75557198,944.26,942.33,1.04989174]
[1768417280397,6.75557198,944.26,942.32,1.04989174]
[1768417281618,1.708,944.25,942.32,1.04989174]
[1768417282497,1.708,944.25,942.28,1.04989174]
[1768417283001,1.708,944.25,942.21,1.04989174]
[1768417283200,1.708,944.25,942.18,1.04989174]
[1768417283400,1.708,944.25,942.14,1.04989174]
[1768417283602,1.708,944.25,942.12,1.04989174]
[1768417283899,1.708,944.25,942.11,1.04989174]
[1768417284105,1.708,944.25,942.1,1.04989174]
[1768417284305,1.708,944.25,942.06,1.04989174]
[1768417284599,1.708,944.25,942.05,1.04989174]
[1768417285300,1.708,944.25,942.02,1.04989174]
[1768417286400,1.708,944.25,942.03,1.04989174]
[1768417288302,1.708,944.25,942.04,1.04989174]
[1768417289400,1.708,944.25,942.18,1.04989174]
[1768417289702,1.708,944.25,942.8,1.04989174]
[1768417290404,1.708,944.25,942.77,1.04989174]
[1768417291100,1.708,944.25,942.76,1.04989174]
[1768417291407,1.708,944.25,942.63,1.04989174]
[1768417291801,1.708,944.25,942.61,1.04989174]
[1768417292300,1.708,944.25,942.6,1.04989174]
[1768417293401,1.708,944.25,942.58,1.04989174]
[1768417294406,1.708,944.25,942.57,1.04989174]
[1768417295402,1.708,944.25,942.56,1.04989174]
[1768417295705,6.75557198,944.26,942.56,1.04989174]
[1768417296305,6.75557198,944.26,942.54,1.04989174]
[1768417296801,6.75557198,944.26,942.56,1.04989174]
[1768417297401,6.75557198,944.26,942.55,1.04989174]
[1768417297806,6.75557198,944.26,942.59,1.04989174]
[1768417298006,6.75557198,944.26,942.61,1.04989174]
[1768417298504,6.75557198,944.26,942.6,1.04989174]
[1768417299108,6.75557198,944.26,942.58,1.04989174]
[1768417299308,1.674,944.25,942.57,1.04989174]
[1768417300009,1.674,944.25,942.54,1.04989174]
[1768417300208,1.674,944.25,942.53,1.04989174]
[1768417300510,1.674,944.25,942.49,1.04989174]
[1768417301407,1.674,944.25,942.48,1.04989174]
[1768417303706,1.674,944.25,942.49,1.04989174]
[1768417304311,1.674,944.25,942.5,1.04989174]
[1768417305407,1.674,944.25,942.49,1.04989174]
[1768417306312,1.674,944.25,942.5,1.04989174]
[1768417308318,1.674,944.25,942.51,1.04989174]
[1768417309520,1.674,944.25,942.52,1.04989174]
[1768417309721,1.674,944.25,942.53,1.04989174]
[1768417310317,1.674,944.25,942.54,1.04989174]
[1768417311318,1.674,944.25,942.55,1.04989174]
[1768417318224,1.674,944.25,942.56,1.04989174]
[1768417318424,1.674,944.25,942.61,1.04989174]
[1768417319323,1.674,944.25,942.62,1.04989174]
[1768417319524,1.674,944.25,942.7,1.04989174]
[1768417319922,1.674,944.25,942.77,1.04989174]
[1768417321224,1.674,944.25,942.76,1.04989174]
[1768417321924,1.674,944.25,942.74,1.04989174]
[1768417322127,1.674,944.25,941.55,3.69112606]
[1768417322128,1.674,944.25,942.73,1.04989174]
[1768417322929,1.674,944.25,942.72,1.04989174]
[1768417324230,6.75557198,944.26,942.72,1.04989174]
[1768417324724,6.75557198,944.26,941.87,2.63651861]
[1768417324725,6.75557198,944.26,942.73,1.04989174]
[1768417325126,6.75557198,944.26,942.71,1.04989174]
[1768417325429,6.75557198,944.26,942.65,1.04989174]
[1768417326730,1.823,944.25,942.65,1.04989174]
[1768417327629,1.823,944.25,942.62,1.04989174]
[1768417329131,1.823,944.25,942.6,1.04989174]